[Event "Reykjavik Open 2025"]
[Site "Reykjavik"]
[Date "2025.04.13"]
[Round "6.39"]
[White "Heimisson, Hilmir Freyr"]
[Black "Boer, Alef"]
[Result "1-0"]
[Annotator "ChessBase"]
[ECO "D35"]
[WhiteElo "2376"]
[BlackElo "2044"]
[PlyCount "53"]
[EventDate "2025.04.09"]
[EventType "swiss"]
[EventCountry "ISL"]
[SourceTitle "playchess.com"]
[Source "ChessBase"]
[SourceQuality "1"]
[TimeControl "40/5400+30:1800+30"]

1. d4 {[%emt 0:01:33]} d5 {[%emt 0:00:27]} 2. c4 {[%emt 0:00:05]} e6 {[%emt 0:00:07]} 3. Nc3 {[%emt 0:00:40]} Nf6 {[%emt 0:00:05]} 4. cxd5 {[%emt 0:00:18]} exd5 {[%emt 0:00:07]} 5. Bg5 {[%emt 0:00:12]} c6 {[%emt 0:00:22]} 6. e3 {[%emt 0:00:43]} a6 {[%emt 0:02:38]} 7. Bd3 {[%emt 0:01:00]} Be6 {[%emt 0:00:30]} 8. Nge2 {[%emt 0:05:12]} h6 {[%emt 0:03:53]} 9. Bh4 {[%emt 0:00:28]} Be7 {[%emt 0:03:03]} 10. f3 {[%emt 0:13:42]} b5 {[%emt 0:00:11]} 11. Bf2 {[%emt 0:02:25]} a5 {[%emt 0:05:59]} 12. O-O {[%emt 0:01:00]} O-O {[%emt 0:00:54]} 13. Rc1 {[%emt 0:03:59]} Re8 {[%emt 0:02:37]} 14. h3 {[%emt 0:01:20]} a4 {[%emt 0:01:42]} 15. e4 {[%emt 0:08:19]} Qa5 {[%emt 0:03:35]} 16. e5 {[%emt 0:06:29]} Nh7 {[%emt 0:03:03]} 17. f4 {[%emt 0:00:46]} b4 {[%emt 0:00:47]} 18. f5 {[%emt 0:03:18]} Bc8 {[%emt 0:03:52]} 19. Nb1 {[%emt 0:00:45]} Ba6 {[%emt 0:01:10]} 20. f6 {[%emt 0:07:31]} gxf6 {[%emt 0:02:08]} 21. Bh4 {[%emt 0:05:54]} Bxd3 {[%emt 0:00:35]} 22. Qxd3 {[%emt 0:05:40]} Qd8 {[%emt 0:05:31]} 23. Ng3 {[%emt 0:08:05]} fxe5 {[%emt 0:04:40]} 24. Nf5 {[%emt 0:00:30]} e4 {[%emt 0:07:11]} 25. Qg3+ {[%emt 0:01:47]} Ng5 {[%emt 0:01:39]} 26. Nxh6+ {[%emt 0:00:30]} Kh7 {[%emt 0:00:20]} 27. Nxf7 {[%emt 0:01:24]} 1-0

[Event "Reykjavik Open 2025"]
[Site "Reykjavik"]
[Date "2025.04.13"]
[Round "6.40"]
[White "De Seroux, Camille"]
[Black "Thorfinnsson, Bragi"]
[Result "0-1"]
[Annotator "ChessBase"]
[ECO "C41"]
[WhiteElo "2049"]
[BlackElo "2375"]
[PlyCount "78"]
[EventDate "2025.04.09"]
[EventType "swiss"]
[EventCountry "ISL"]
[SourceTitle "playchess.com"]
[Source "ChessBase"]
[SourceQuality "1"]
[TimeControl "40/5400+30:1800+30"]

1. e4 {[%emt 0:01:23]} d6 {[%emt 0:00:21]} 2. d4 {[%emt 0:01:03]} Nf6 {[%emt 0:00:06]} 3. Nc3 {[%emt 0:00:23]} Nbd7 {[%emt 0:00:23]} 4. Nf3 {[%emt 0:01:33]} e5 {[%emt 0:01:16]} 5. Bc4 {[%emt 0:01:01]} Be7 {[%emt 0:00:17]} 6. O-O {[%emt 0:00:17]} c6 {[%emt 0:00:26]} 7. a4 {[%emt 0:04:31]} Qc7 {[%emt 0:04:16]} 8. Re1 {[%emt 0:02:13]} O-O {[%emt 0:03:40]} 9. Ba2 {[%emt 0:02:45]} h6 {[%emt 0:03:21]} 10. h3 {[%emt 0:12:44]} Re8 {[%emt 0:01:36]} 11. Qd3 {[%emt 0:13:37]} Nf8 {[%emt 0:08:18]} 12. Qc4 {[%emt 0:06:23]} Bd8 {[%emt 0:05:59]} 13. Be3 {[%emt 0:08:30]} Be6 {[%emt 0:03:51]} 14. Qd3 {[%emt 0:07:19]} Bxa2 {[%emt 0:04:11]} 15. Rxa2 {[%emt 0:00:57]} Ng6 {[%emt 0:00:07]} 16. Raa1 {[%emt 0:04:14]} Qe7 {[%emt 0:04:19]} 17. dxe5 {[%emt 0:04:14]} dxe5 {[%emt 0:01:03]} 18. Ne2 {[%emt 0:00:49]} Nh5 {[%emt 0:02:54]} 19. Qb3 {[%emt 0:05:21]} Ba5 {[%emt 0:04:10]} 20. c3 {[%emt 0:04:17]} Qc7 {[%emt 0:04:29]} 21. Rad1 {[%emt 0:02:12]} Bb6 {[%emt 0:04:32]} 22. Bxb6 {[%emt 0:02:04]} Qxb6 {[%emt 0:00:13]} 23. Qxb6 {[%emt 0:01:54]} axb6 {[%emt 0:00:03]} 24. Rd7 {[%emt 0:00:23]} Rxa4 {[%emt 0:03:55]} 25. Rxb7 {[%emt 0:00:44]} b5 {[%emt 0:00:07]} 26. b4 {[%emt 0:08:31]} Rd8 {[%emt 0:02:13]} 27. Rc7 {[%emt 0:01:23]} Ra6 {[%emt 0:02:02]} 28. Rc1 {[%emt 0:02:11]} Nf6 {[%emt 0:17:10]} 29. Ng3 {[%emt 0:00:38]} Ne8 {[%emt 0:00:14]} 30. Rb7 {[%emt 0:00:34]} Nd6 {[%emt 0:01:42]} 31. Rc7 {[%emt 0:00:08]} Nc4 {[%emt 0:00:15]} 32. Nf5 {[%emt 0:00:48]} Nf4 {[%emt 0:02:11]} 33. Re1 {[%emt 0:00:40]} Kf8 {[%emt 0:01:27]} 34. g3 {[%emt 0:00:47]} Ne6 {[%emt 0:01:42]} 35. Rb7 {[%emt 0:00:22]} g6 {[%emt 0:01:34]} 36. N3h4 {[%emt 0:01:04]} gxf5 {[%emt 0:01:31]} 37. exf5 {[%emt 0:00:25]} Nd6 {[%emt 0:01:57]} 38. fxe6 {[%emt 0:00:24]} Nxb7 {[%emt 0:00:17]} 39. Rxe5 {[%emt 0:00:06]} Re8 {[%emt 0:01:21]} 0-1

[Event "Reykjavik Open 2025"]
[Site "Reykjavik"]
[Date "2025.04.13"]
[Round "6.41"]
[White "Cigan, Jason"]
[Black "Song, Yuxin"]
[Result "0-1"]
[Annotator "ChessBase"]
[ECO "B80"]
[WhiteElo "2044"]
[BlackElo "2371"]
[PlyCount "46"]
[EventDate "2025.04.09"]
[EventType "swiss"]
[EventCountry "ISL"]
[SourceTitle "playchess.com"]
[Source "ChessBase"]
[SourceQuality "1"]
[TimeControl "40/5400+30:1800+30"]

1. e4 {[%emt 0:00:08]} c5 {[%emt 0:00:07]} 2. Nf3 {[%emt 0:00:05]} d6 {[%emt 0:00:07]} 3. d4 {[%emt 0:00:11]} cxd4 {[%emt 0:00:05]} 4. Nxd4 {[%emt 0:00:04]} Nf6 {[%emt 0:00:07]} 5. Nc3 {[%emt 0:00:05]} a6 {[%emt 0:00:05]} 6. f3 {[%emt 0:00:08]} e6 {[%emt 0:00:06]} 7. Be3 {[%emt 0:00:06]} b5 {[%emt 0:00:07]} 8. Qd2 {[%emt 0:00:38]} Bb7 {[%emt 0:00:06]} 9. g4 {[%emt 0:00:39]} Nfd7 {[%emt 0:04:32]} 10. O-O-O {[%emt 0:04:25]} Nb6 {[%emt 0:00:00]} 11. Nb3 {[%emt 0:00:55]} b4 {[%emt 0:18:25]} 12. Nb1 {[%emt 0:25:23]} Nc6 {[%emt 0:03:22]} 13. Na5 {[%emt 0:03:18]} Nxa5 {[%emt 0:04:20]} 14. Qxb4 {[%emt 0:00:34]} Nbc4 {[%emt 0:02:10]} 15. Bxc4 {[%emt 0:02:48]} d5 {[%emt 0:00:02]} 16. Bc5 {[%emt 0:16:40]} Bxc5 {[%emt 0:01:29]} 17. Qxc5 {[%emt 0:00:03]} Nxc4 {[%emt 0:10:09]} 18. exd5 {[%emt 0:02:10]} Bxd5 {[%emt 0:00:05]} 19. Nc3 {[%emt 0:01:19]} Rc8 {[%emt 0:04:02]} 20. Qb4 {[%emt 0:01:31]} Qg5+ {[%emt 0:00:48]} 21. Kb1 {[%emt 0:01:04]} Nd2+ {[%emt 0:00:32]} 22. Ka1 {[%emt 0:02:44]} Bxf3 {[%emt 0:00:05]} 23. h4 {[%emt 0:00:41]} Qc5 {[%emt 0:00:09]} 0-1

[Event "Reykjavik Open 2025"]
[Site "Reykjavik"]
[Date "2025.04.13"]
[Round "6.42"]
[White "Deboushnik De"]
[Black "Wartiovaara, Oliver"]
[Result "1/2-1/2"]
[Annotator "ChessBase"]
[ECO "D37"]
[WhiteElo "2038"]
[BlackElo "2359"]
[PlyCount "89"]
[EventDate "2025.04.09"]
[EventType "swiss"]
[EventCountry "ISL"]
[SourceTitle "playchess.com"]
[Source "ChessBase"]
[SourceQuality "1"]
[TimeControl "40/5400+30:1800+30"]

1. d4 {[%emt 0:00:08]} d5 {[%emt 0:00:04]} 2. c4 {[%emt 0:00:14]} e6 {[%emt 0:00:03]} 3. Nf3 {[%emt 0:00:35]} Nf6 {[%emt 0:00:07]} 4. Nc3 {[%emt 0:00:08]} Nbd7 {[%emt 0:00:06]} 5. Qc2 {[%emt 0:00:22]} dxc4 {[%emt 0:03:24]} 6. e4 {[%emt 0:00:09]} c5 {[%emt 0:01:18]} 7. Bxc4 {[%emt 0:00:06]} cxd4 {[%emt 0:03:18]} 8. Nxd4 {[%emt 0:00:02]} Bd6 {[%emt 0:10:16]} 9. Be2 {[%emt 0:11:30]} O-O {[%emt 0:06:17]} 10. O-O {[%emt 0:07:54]} a6 {[%emt 0:02:21]} 11. Kh1 {[%emt 0:20:54]} b5 {[%emt 0:11:32]} 12. f4 {[%emt 0:01:17]} Qb6 {[%emt 0:06:22]} 13. Be3 {[%emt 0:09:07]} Bc5 {[%emt 0:00:55]} 14. Rad1 {[%emt 0:01:44]} Bb7 {[%emt 0:01:54]} 15. Bg1 {[%emt 0:10:36]} Rac8 {[%emt 0:09:11]} 16. Qb1 {[%emt 0:04:04]} b4 {[%emt 0:12:59]} 17. Na4 {[%emt 0:00:00]} Qa7 {[%emt 0:00:07]} 18. Nxc5 {[%emt 0:03:57]} Nxc5 {[%emt 0:00:13]} 19. e5 {[%emt 0:00:41]} Be4 {[%emt 0:00:26]} 20. Qa1 {[%emt 0:01:04]} Qb7 {[%emt 0:00:50]} 21. Bf3 {[%emt 0:01:13]} Nd5 {[%emt 0:02:16]} 22. Bxe4 {[%emt 0:01:12]} Nxe4 {[%emt 0:00:06]} 23. f5 {[%emt 0:05:07]} exf5 {[%emt 0:02:39]} 24. Nxf5 {[%emt 0:00:22]} Rfe8 {[%emt 0:01:10]} 25. Bd4 {[%emt 0:01:12]} Rc2 {[%emt 0:03:38]} 26. Rc1 {[%emt 0:05:45]} Rd2 {[%emt 0:08:18]} 27. Rcd1 {[%emt 0:01:24]} Rc2 {[%emt 0:07:53]} 28. Rc1 {[%emt 0:00:05]} Rec8 {[%emt 0:00:14]} 29. Rxc2 {[%emt 0:00:01]} Rxc2 {[%emt 0:00:07]} 30. Qd1 {[%emt 0:04:43]} Qb5 {[%emt 0:03:40]} 31. e6 {[%emt 0:08:13]} fxe6 {[%emt 0:00:33]} 32. Nxg7 {[%emt 0:01:57]} Qe2 {[%emt 0:02:54]} 33. Qxe2 {[%emt 0:00:27]} Rxe2 {[%emt 0:00:04]} 34. Nxe6 {[%emt 0:00:15]} h6 {[%emt 0:00:54]} 35. g4 {[%emt 0:00:23]} Ng3+ {[%emt 0:00:58]} 36. hxg3 {[%emt 0:00:02]} Rxe6 {[%emt 0:00:06]} 37. Rf5 {[%emt 0:01:04]} Ne3 {[%emt 0:01:01]} 38. Bxe3 {[%emt 0:00:15]} Rxe3 {[%emt 0:00:05]} 39. Kg2 {[%emt 0:00:19]} Re2+ {[%emt 0:00:41]} 40. Rf2 {[%emt 0:00:01]} Rxf2+ {[%emt 0:00:22]} 41. Kxf2 {[%emt 0:30:01]} Kf7 {[%emt 0:30:07]} 42. Ke3 {[%emt 0:00:00]} Kg6 {[%emt 0:00:00]} 43. Ke4 {[%emt 0:00:00]} Kg5 {[%emt 0:00:00]} 44. Kf3 {[%emt 0:00:00]} Kg6 {[%emt 0:00:00]} 45. Ke4 {[%emt 0:00:00]} 1/2-1/2

[Event "Reykjavik Open 2025"]
[Site "Reykjavik"]
[Date "2025.04.13"]
[Round "6.43"]
[White "Lohia, Sohum"]
[Black "De Mey, Juan Pablo"]
[Result "1-0"]
[Annotator "ChessBase"]
[ECO "B76"]
[WhiteElo "2354"]
[BlackElo "2030"]
[PlyCount "125"]
[EventDate "2025.04.09"]
[EventType "swiss"]
[EventCountry "ISL"]
[SourceTitle "playchess.com"]
[Source "ChessBase"]
[SourceQuality "1"]
[TimeControl "40/5400+30:1800+30"]

1. e4 {[%emt 0:00:03]} c5 {[%emt 0:12:15]} 2. Nf3 {[%emt 0:00:10]} d6 {[%emt 0:00:01]} 3. d4 {[%emt 0:00:13]} cxd4 {[%emt 0:00:02]} 4. Nxd4 {[%emt 0:00:13]} Nf6 {[%emt 0:00:04]} 5. Nc3 {[%emt 0:00:10]} g6 {[%emt 0:00:01]} 6. Be3 {[%emt 0:00:12]} Bg7 {[%emt 0:00:02]} 7. f3 {[%emt 0:00:12]} Nc6 {[%emt 0:00:07]} 8. Qd2 {[%emt 0:00:27]} O-O {[%emt 0:00:07]} 9. O-O-O {[%emt 0:00:15]} d5 {[%emt 0:00:15]} 10. exd5 {[%emt 0:00:15]} Nxd5 {[%emt 0:01:28]} 11. Nxc6 {[%emt 0:00:16]} bxc6 {[%emt 0:00:15]} 12. Bd4 {[%emt 0:00:08]} e5 {[%emt 0:00:28]} 13. Bc5 {[%emt 0:00:09]} Be6 {[%emt 0:00:08]} 14. Ne4 {[%emt 0:00:15]} Re8 {[%emt 0:00:06]} 15. h4 {[%emt 0:00:23]} h5 {[%emt 0:00:06]} 16. Bc4 {[%emt 0:01:11]} Nf4 {[%emt 0:00:53]} 17. Bxe6 {[%emt 0:01:09]} Qxd2+ {[%emt 0:06:41]} 18. Rxd2 {[%emt 0:10:10]} Nxe6 {[%emt 0:02:11]} 19. Be3 {[%emt 0:02:44]} f5 {[%emt 0:00:02]} 20. Nd6 {[%emt 0:02:48]} Re7 {[%emt 0:00:02]} 21. Rhd1 {[%emt 0:07:19]} Bf6 {[%emt 0:00:02]} 22. Bf2 {[%emt 0:02:01]} Nf4 {[%emt 0:06:41]} 23. g3 {[%emt 0:06:29]} Ne6 {[%emt 0:20:46]} 24. c3 {[%emt 0:09:53]} Rf8 {[%emt 0:11:40]} 25. Re2 {[%emt 0:23:50]} Rd8 {[%emt 0:21:29]} 26. Nc4 {[%emt 0:02:11]} Rxd1+ {[%emt 0:00:19]} 27. Kxd1 {[%emt 0:00:01]} Nd8 {[%emt 0:00:00]} 28. Rd2 {[%emt 0:09:43]} Nf7 {[%emt 0:00:11]} 29. Bc5 {[%emt 0:01:55]} Rc7 {[%emt 0:02:25]} 30. Be3 {[%emt 0:06:22]} Be7 {[%emt 0:03:05]} 31. a4 {[%emt 0:01:24]} Kf8 {[%emt 0:00:41]} 32. a5 {[%emt 0:02:13]} Ke8 {[%emt 0:00:01]} 33. b4 {[%emt 0:04:00]} a6 {[%emt 0:01:52]} 34. Nb6 {[%emt 0:02:20]} g5 {[%emt 0:06:06]} 35. hxg5 {[%emt 0:00:32]} Bxg5 {[%emt 0:00:01]} 36. Re2 {[%emt 0:03:58]} Bxe3 {[%emt 0:01:57]} 37. Rxe3 {[%emt 0:00:01]} Ke7 {[%emt 0:00:13]} 38. Na4 {[%emt 0:00:51]} Kf6 {[%emt 0:03:59]} 39. Nc5 {[%emt 0:00:26]} Ra7 {[%emt 0:00:01]} 40. Ke2 {[%emt 0:02:32]} Nd6 {[%emt 0:03:04]} 41. Rd3 {[%emt 0:06:27]} Nb5 {[%emt 0:02:28]} 42. Kf2 {[%emt 0:02:53]} Ke7 {[%emt 0:05:15]} 43. Kg2 {[%emt 0:01:39]} Nd6 {[%emt 0:00:42]} 44. Kh3 {[%emt 0:01:16]} Nf7 {[%emt 0:00:01]} 45. Kh4 {[%emt 0:00:48]} Nd6 {[%emt 0:01:46]} 46. Kxh5 {[%emt 0:10:11]} Ra8 {[%emt 0:05:06]} 47. g4 {[%emt 0:03:51]} Rh8+ {[%emt 0:03:27]} 48. Kg6 {[%emt 0:00:53]} fxg4 {[%emt 0:06:10]} 49. fxg4 {[%emt 0:00:06]} e4 {[%emt 0:00:01]} 50. Nxe4 {[%emt 0:02:20]} Nc4 {[%emt 0:03:25]} 51. Rd4 {[%emt 0:05:36]} Ne3 {[%emt 0:05:46]} 52. Nc5 {[%emt 0:00:25]} Nd5 {[%emt 0:01:43]} 53. g5 {[%emt 0:00:28]} Rg8+ {[%emt 0:00:24]} 54. Kh5 {[%emt 0:00:33]} Nxc3 {[%emt 0:00:37]} 55. Rd7+ {[%emt 0:00:24]} Ke8 {[%emt 0:00:08]} 56. Ra7 {[%emt 0:00:25]} Rh8+ {[%emt 0:00:44]} 57. Kg4 {[%emt 0:00:20]} Rh1 {[%emt 0:00:24]} 58. Rxa6 {[%emt 0:00:54]} Nd5 {[%emt 0:00:24]} 59. Ra8+ {[%emt 0:00:27]} Kf7 {[%emt 0:00:16]} 60. a6 {[%emt 0:00:28]} Nxb4 {[%emt 0:01:01]} 61. a7 {[%emt 0:00:08]} Ra1 {[%emt 0:00:04]} 62. Rh8 {[%emt 0:00:46]} Rg1+ {[%emt 0:01:04]} 63. Kf3 {[%emt 0:00:18]} 1-0

[Event "Reykjavik Open 2025"]
[Site "Reykjavik"]
[Date "2025.04.13"]
[Round "6.44"]
[White "Ruiz Buendia, Miguel"]
[Black "Schwarz, David"]
[Result "1-0"]
[Annotator "ChessBase"]
[ECO "E11"]
[WhiteElo "2353"]
[BlackElo "2028"]
[PlyCount "75"]
[EventDate "2025.04.09"]
[EventType "swiss"]
[EventCountry "ISL"]
[SourceTitle "playchess.com"]
[Source "ChessBase"]
[SourceQuality "1"]
[TimeControl "40/5400+30:1800+30"]

1. d4 {[%emt 0:04:09]} e6 {[%emt 0:00:35]} 2. c4 {[%emt 0:02:00]} Bb4+ {[%emt 0:00:05]} 3. Bd2 {[%emt 0:01:10]} a5 {[%emt 0:00:04]} 4. Nf3 {[%emt 0:02:22]} Nf6 {[%emt 0:00:57]} 5. e3 {[%emt 0:02:58]} b6 {[%emt 0:04:03]} 6. Bd3 {[%emt 0:02:13]} d5 {[%emt 0:00:05]} 7. cxd5 {[%emt 0:03:22]} exd5 {[%emt 0:00:14]} 8. Qa4+ {[%emt 0:02:32]} Bd7 {[%emt 0:00:18]} 9. Qc2 {[%emt 0:00:41]} O-O {[%emt 0:01:20]} 10. O-O {[%emt 0:01:37]} Re8 {[%emt 0:05:40]} 11. Bxb4 {[%emt 0:10:52]} axb4 {[%emt 0:00:07]} 12. Nbd2 {[%emt 0:00:27]} Ba4 {[%emt 0:06:08]} 13. b3 {[%emt 0:01:14]} Bc6 {[%emt 0:01:08]} 14. Rfc1 {[%emt 0:04:51]} Re7 {[%emt 0:00:12]} 15. Ne5 {[%emt 0:01:34]} Bb7 {[%emt 0:00:10]} 16. Ndf3 {[%emt 0:05:33]} Ne4 {[%emt 0:02:01]} 17. Bf1 {[%emt 0:03:51]} c5 {[%emt 0:08:02]} 18. Nd2 {[%emt 0:06:47]} Rc7 {[%emt 0:07:25]} 19. Nxe4 {[%emt 0:01:30]} dxe4 {[%emt 0:00:02]} 20. Rd1 {[%emt 0:03:31]} Qe7 {[%emt 0:12:27]} 21. Bc4 {[%emt 0:05:39]} cxd4 {[%emt 0:06:33]} 22. Rxd4 {[%emt 0:00:15]} b5 {[%emt 0:00:20]} 23. Qd2 {[%emt 0:06:31]} Na6 {[%emt 0:09:41]} 24. Bxb5 {[%emt 0:01:26]} Rc5 {[%emt 0:06:17]} 25. Rd7 {[%emt 0:04:08]} Qf6 {[%emt 0:00:02]} 26. Rd1 {[%emt 0:01:32]} h6 {[%emt 0:04:17]} 27. Bc4 {[%emt 0:05:35]} Qxe5 {[%emt 0:13:24]} 28. Bxf7+ {[%emt 0:01:53]} Kh7 {[%emt 0:00:02]} 29. Rxb7 {[%emt 0:00:13]} Rc3 {[%emt 0:00:01]} 30. Bc4 {[%emt 0:01:57]} Nc5 {[%emt 0:06:36]} 31. Rxb4 {[%emt 0:01:07]} Nd3 {[%emt 0:00:04]} 32. Rb5 {[%emt 0:01:02]} Qf6 {[%emt 0:00:02]} 33. Rd5 {[%emt 0:03:00]} Rc8 {[%emt 0:03:59]} 34. Rd4 {[%emt 0:01:37]} Rf8 {[%emt 0:02:16]} 35. Bxd3 {[%emt 0:01:02]} exd3 {[%emt 0:00:58]} 36. Rf4 {[%emt 0:01:36]} Rc2 {[%emt 0:00:02]} 37. Qxd3+ {[%emt 0:00:23]} Qg6 {[%emt 0:00:02]} 38. Qxg6+ {[%emt 0:00:20]} 1-0